Cogmind - Beta 15 @@@ ROGUE MODE // 2025.10.06 @ 13:51:14 Player: AussieBBQ Result: Destroyed by B-75 Beast with Heavy Plasma Cannon Performance ------------- Evolutions (5) 2500 Regions Visited (12) 2400 Robots Destroyed (118) 590 Value Destroyed (3411) 3411 Prototype IDs (31) 620 Alien Tech Used (0) 0 Bonus (439) 439 TOTAL SCORE: 9960 Bonus ------- High Alert Combat Kills 72 Follower Combat Kills 67 Aligned with FarCom 300 Cogmind --------- Core Integrity 0/1000 Matter 391/550 Energy 1585/1765 System Corruption 4% Temperature Cool (12) Movement Core (300) Ox5 Location -5/Factory Parts ------- > --- POWER (1) -------- Improved Ion Engine > --- PROPULSION (6) --- (None) > --- UTILITY (7) ------ Superbattery Matter Compressor Advanced Targeting Computer > --- WEAPON (3) ------- (None) > --- INVENTORY (5) ---- High-capacity Matter Pod (0) Hardened Heavy Armor Plating Medium Reactive Plating Peak State ------------ > --- POWER ------------ Reinforced Deuterium Engine > --- PROPULSION ------- Improved Treads Improved Treads Improved Treads Medium Treads Improved Medium Treads > --- UTILITY ---------- Improved Heat Sink Improved Heat Sink Huge Storage Unit Matter Compressor Advanced Targeting Computer Improved Transmission Jammer Improved Medium Armor Plating > --- WEAPON ----------- Tesla Rifle Thermic Laser KE Penetrator > --- INVENTORY -------- Improved Ion Engine Improved Ion Engine Improved Ion Engine Light Deuterium Engine Improved Deuterium Engine Neutrino Core Advanced Power Amplifier Superbattery High-capacity Matter Pod Tactical Coordination Suite Improved Launcher Guidance Computer Hardened Light Armor Plating Hardened Heavy Armor Plating Medium Reactive Plating EM Shotgun Cooled Pulse Rifle Plasma Cannon Plasma Cannon Assault Cannon Advanced Assault Cannon Improved Proton Missile Launcher Rocket Array Rocket Array Great Axe [Rating: 71] Favorites ----------- Power Improved Ion Engine Engine Improved Ion Engine Power Core Neutrino Core Propulsion Improved Treads Treads Improved Treads Leg Armored Leg Wheel Wheel Utility Improved Heat Sink Device Improved Heat Sink Storage Huge Storage Unit Processor Visual Processing Unit Protection Hardened Heavy Armor Plating Weapon Minigun Energy Gun Thermic Laser Energy Cannon Plasma Cannon Ballistic Gun Minigun Ballistic Cannon Advanced Assault Cannon Launcher Grenade Launcher Special Weapon Mining Laser Slashing Weapon Scythe Build | -11 -10 -10 -9 -9 -9 -8 -8 -7 -6 -6 -6 -5 ------- Run | Yrd Mat Min Mat Min Exi Min Mat Fac Fac Low Low Fac Slots Evolved 10 | . . . 2 . . . 2 2 2 . . 2 Power . | . . . . . . . . . . . . . Propulsion 4 | . . . 1 . . . 2 . 1 . . . Utility 5 | . . . 1 . . . . 2 . . . 2 Weapon 1 | . . . . . . . . . 1 . . . Parts Attached 104 | 7 11 1 28 1 1 1 23 5 5 3 1 17 Power 12 | 1 . . 5 . . . 2 . 1 1 . 2 Engine 11 | 1 . . 5 . . . 2 . 1 1 . 1 Core 1 | . . . . . . . . . . . . 1 Reactor . | . . . . . . . . . . . . . Propulsion 30 | 2 4 . 8 . . . 7 1 1 2 . 5 Treads 24 | 1 2 . 7 . . . 7 1 . 2 . 4 Leg 1 | . . . . . . . . . 1 . . . Wheel 5 | 1 2 . 1 . . . . . . . . 1 Hover . | . . . . . . . . . . . . . Flight . | . . . . . . . . . . . . . Utility 28 | 2 4 . 4 1 1 1 4 2 1 . 1 7 Device 8 | 1 1 . 1 1 . . 1 . . . 1 2 Storage 8 | 1 3 . . . 1 . . 1 . . . 2 Processor 3 | . . . 1 . . . 1 . . . . 1 Hackware . | . . . . . . . . . . . . . Protection 9 | . . . 2 . . 1 2 1 1 . . 2 Artifact . | . . . . . . . . . . . . . Weapon 34 | 2 3 1 11 . . . 10 2 2 . . 3 Energy Gun 8 | 1 . . 2 . . . 2 . 2 . . 1 Energy Cannon 3 | . . . 1 . . . 2 . . . . . Ballistic Gun 11 | 1 2 . 5 . . . 1 . . . . 2 Ballistic Cannon 3 | . . . 1 . . . 1 1 . . . . Launcher 6 | . 1 1 1 . . . 2 1 . . . . Special Weapon 1 | . . . 1 . . . . . . . . . Impact Weapon . | . . . . . . . . . . . . . Slashing Weapon 2 | . . . . . . . 2 . . . . . Piercing Weapon . | . . . . . . . . . . . . . Special Melee Weapon . | . . . . . . . . . . . . . Unidentified Prototypes 6 | . . . 1 1 . . 2 . 1 . . 1 Parts Lost 37 | . 1 . 3 . . . 1 6 . 2 2 22 Power 5 | . . . . . . . . 1 . . . 4 Propulsion 17 | . . . 2 . . . . 1 . 2 2 10 Utility 7 | . 1 . . . . . . 2 . . . 4 Weapon 8 | . . . 1 . . . 1 2 . . . 4 Highest Loss Streak 20 | . 1 . 1 . . . 1 3 . 2 2 20 To Critical Strikes . | . . . . . . . . . . . . . Average Backups 19 | 4 10 14 18 20 19 19 22 23 21 24 24 20 Power 2 | . 1 2 2 2 2 2 2 2 3 4 6 4 Propulsion 3 | 3 4 5 4 3 3 3 2 4 2 1 . . Utility 5 | . 1 2 4 5 5 5 7 5 7 8 9 7 Weapon 8 | 1 2 5 8 9 9 9 9 10 8 10 9 8 Tool/Special . | . . . . . . . . . . . . . Unused Backups 17 | . 1 . 8 . . 1 4 . . . . 3 Power 2 | . . . 2 . . . . . . . . . Propulsion 5 | . 1 . 1 . . . 3 . . . . . Utility 6 | . . . 4 . . . . . . . . 2 Weapon 4 | . . . 1 . . 1 1 . . . . 1 Tool/Special . | . . . . . . . . . . . . . Average Slot Usage (%) 95 | . 97 94 98 100 100 99 99 92 93 92 87 81 Engine 9 | . 14 14 11 11 11 11 9 7 6 6 6 4 Treads 33 | . 16 14 32 33 33 33 44 37 39 40 34 22 Wheel 1 | . 11 14 . . . . . . . . . . Device 6 | . 10 14 11 4 . . . 7 6 6 11 12 Storage 14 | . 17 14 12 17 22 22 11 15 13 13 7 10 Processor 4 | . . . 9 11 11 1 6 . . . . 5 Protection 4 | . . . . . . 8 8 7 6 6 6 6 Energy Gun 4 | . 6 . 1 . . . 3 1 5 17 15 11 Energy Cannon 2 | . . . 2 . . . 1 6 8 2 . . Ballistic Gun 11 | . 18 20 15 22 22 22 10 1 . . . 3 Ballistic Cannon 1 | . . . 1 . . . 1 4 5 . 3 . Peak Build Rating 71 | 6 10 10 23 27 30 30 45 57 67 68 67 71 Average Rating 35 | 4 8 9 19 22 25 29 34 55 63 65 57 59 On Entrance 32 | . 6 10 9 23 27 30 29 45 53 67 67 57 Naked Turns . | . . . . . . . . . . . . . Heaviest Build 138 | 13 91 50 56 57 57 60 123 127 135 138 132 128 Greatest Support 158 | 20 40 10 69 69 69 69 135 135 158 158 127 127 Greatest Overweight (x) 13 | . 9 4 4 . . . . . 1 . 1 13 Average Overweight (x) . | . 3 4 . . . . . . . . 1 . Largest Inventory Capacity 25 | 8 25 20 25 20 20 25 25 25 25 25 25 25 Average Capacity 21 | 7 17 20 20 20 20 20 24 25 25 25 25 22 Most Carried 25 | 8 13 15 20 20 20 20 25 25 25 25 25 25 Average Carried 19 | 5 10 14 18 19 19 19 23 23 21 24 24 21 Final Capacity 25 | 8 20 20 20 20 20 20 25 25 25 25 25 5 Final Carried 25 | 8 13 15 20 20 20 20 25 20 25 25 24 4 Class Distribution -------------------- 76% | Mutant 12% | Tank 11% | Skirmisher Dominant Class ---------------- Mutant | -10/Materials Mutant | -10/Mines Mutant | -9/Materials Mutant | -9/Mines Mutant | -9/Exiles Mutant | -8/Mines Mutant | -8/Materials Mutant | -7/Factory Skirmisher | -6/Factory Tank | -6/Lower Caves Tank | -6/Lower Caves Tank | -5/Factory Resources | -11 -10 -10 -9 -9 -9 -8 -8 -7 -6 -6 -6 -5 ----------- Run | Yrd Mat Min Mat Min Exi Min Mat Fac Fac Low Low Fac Matter Collected 3314 | 266 217 187 784 . . 86 607 241 207 246 174 299 Remotely . | . . . . . . . . . . . . . Salvage Created 3731 | 48 241 10 1186 . . 34 705 494 199 179 166 469 Parts 214 | 6 16 3 67 . . 6 50 33 6 6 2 19 Haulers Intercepted 5 | . 2 . 3 . . . . . . . . . Recyclers Shooed 5 | . 2 . 1 . . . 1 . 1 . . . Parts Field Recycled . | . . . . . . . . . . . . . Retrieved Matter . | . . . . . . . . . . . . . Parts Self-Destructed 5 | . . . . . . . . . . 3 2 . Prevented 2 | . . . . . . . . . . . 2 . Kills | -11 -10 -10 -9 -9 -9 -8 -8 -7 -6 -6 -6 -5 ------- Run | Yrd Mat Min Mat Min Exi Min Mat Fac Fac Low Low Fac Combat Hostiles Destroyed 83 | . 4 2 24 . . 3 23 10 1 7 3 6 Guns 28 | . 2 . 9 . . 3 6 4 . . 1 3 Cannons 13 | . . . 6 . . . 3 3 . . 1 . AOE 39 | . 2 2 9 . . . 14 3 . 6 . 3 Classes Destroyed 16 | 1 3 1 3 . . . 1 4 . 2 . 1 Worker 6 | . . . 1 . . . 1 1 . . . 3 Builder 10 | . . . . . . . 2 4 . . . 4 Tunneler 4 | 2 . . . . . . 1 . 1 . . . Hauler 5 | . 2 . 3 . . . . . . . . . Recycler 7 | . . . 3 . . . 2 . 1 . . 1 Operator 1 | . . . . . . . . 1 . . . . Watcher 2 | . 1 . 1 . . . . . . . . . Swarmer 22 | . . 2 4 . . 3 10 . . 3 . . Cutter 2 | . . . . . . . . 2 . . . . Grunt 34 | . 4 . 10 . . . 8 4 . 2 3 3 Duelist 1 | . . . . . . . . . . 1 . . Sentry 17 | . . . 10 . . . 5 1 1 . . . Hunter 1 | . . . . . . . . . . . . 1 Programmer 4 | . . . . . . . . 2 . . . 2 Heavy 1 | . . . . . . . . 1 . . . . Behemoth 1 | . . . . . . . . . . 1 . . Best Kill Streak 14 | 2 3 2 12 . . 3 9 14 2 3 3 9 Combat Bots Only 8 | . 2 2 8 . . 3 5 8 1 3 3 3 Max Kills in Single Turn 7 | 1 2 2 7 . . 1 4 5 1 3 1 5 Gunslinging . | . . . . . . . . . . . . . Exploded 3 | . 1 2 3 . . . 3 2 . 3 . 1 Melee . | . . . . . . . . . . . . . Uniques/NPCs Destroyed . | . . . . . . . . . . . . . Combat | -11 -10 -10 -9 -9 -9 -8 -8 -7 -6 -6 -6 -5 -------- Run | Yrd Mat Min Mat Min Exi Min Mat Fac Fac Low Low Fac Hostile Shots Fired 683 | . 22 . 91 . . 11 76 208 36 20 34 185 Missed 217 | . 5 . 24 . . 4 25 74 19 3 7 56 Hits 466 | . 17 . 67 . . 7 51 134 17 17 27 129 Melee 10 | . . . . . . . . 10 . . . . Projectile 456 | . 17 . 67 . . 7 51 124 17 17 27 129 AOE 3 | . . . . . . . . 3 . . . . Critical Strikes 23 | . . . 5 . . . . 7 . 1 2 8 Part Disruptions 2 | . . . . . . . . . . . . 2 Damage Taken 8257 | . 261 . 981 . . 49 855 1950 125 477 519 3040 Core 1454 | . 40 . 119 . . 6 114 104 . 26 36 1009 Absorbed by Shields . | . . . . . . . . . . . . . Ignored by Resistances 112 | . . . . . . . 4 108 . . . . Regen/Repaired (Parts) 28 | . 28 . . . . . . . . . . . Core Remaining (%) 84 | 100 . 84 . . . 68 79 85 . . 92 . Volleys Fired 203 | 3 28 6 55 . . 7 39 25 5 7 9 19 Largest 3 | 1 2 1 2 . . 2 2 2 3 3 3 3 Hottest 200 | 20 60 30 101 . . 50 160 160 200 180 162 183 Shots Fired 392 | 3 52 6 104 . . 14 65 50 15 13 27 43 Gun 291 | 3 48 5 77 . . 14 45 34 . 4 21 40 Cannon 71 | . . . 22 . . . 8 14 15 6 6 . Launcher 30 | . 4 1 5 . . . 12 2 . 3 . 3 Special . | . . . . . . . . . . . . . Kinetic 205 | 3 43 5 79 . . 14 24 12 5 . 6 14 Thermal 116 | . 5 . 10 . . . 20 22 10 10 21 18 Explosive 30 | . 4 1 5 . . . 12 2 . 3 . 3 Electromagnetic 41 | . . . 10 . . . 9 14 . . . 8 Robot Hit Streak 19 | 1 10 3 19 . . 19 8 11 10 12 11 12 Robot Miss Streak 4 | 1 3 1 4 . . 3 3 4 2 2 1 2 Penetration Max . | . . . . . . . . . . . . . Secondary Targets 3 | . . . 1 . . . . 1 . . . 1 Max Gunslinging Chain 1 | . . . 1 . . . . 1 . . . 1 Shots Hit Robots 265 | 2 33 4 78 . . 9 37 31 9 12 21 29 Core Hits 222 | 2 17 4 47 . . 3 46 30 3 17 9 44 Critical Kills 1 | . . . . . . . . . 1 . . . Critical Parts Destroyed . | . . . . . . . . . . . . . Critical Strikes 8 | . . . . . . . 1 1 1 . 1 4 Burn 7 | . . . . . . . 1 1 . . 1 4 Meltdown 1 | . . . . . . . . . 1 . . . Melee Attacks 2 | . . . . . . . 2 . . . . . Impact . | . . . . . . . . . . . . . Slashing 2 | . . . . . . . 2 . . . . . Piercing . | . . . . . . . . . . . . . Sneak Attacks . | . . . . . . . . . . . . . Combat Hostiles . | . . . . . . . . . . . . . Follow-up Attacks . | . . . . . . . . . . . . . Damage Inflicted 9461 | 25 576 132 2039 . . 157 2211 1079 262 928 435 1617 Guns 3194 | 25 362 46 850 . . 157 487 265 . 82 333 587 Cannons 1343 | . . . 374 . . . 104 333 262 168 102 . Explosions 4869 | . 214 86 815 . . . 1565 481 . 678 . 1030 Melee . | . . . . . . . . . . . . . Ramming 55 | . . . . . . . 55 . . . . . Kinetic 2196 | 25 307 46 926 . . 157 229 161 54 . 102 189 Thermal 2208 | . 55 . 186 . . . 458 435 208 250 333 283 Explosive 4540 | . 214 86 815 . . . 1387 396 . 678 . 964 Electromagnetic 462 | . . . 112 . . . 82 87 . . . 181 Impact . | . . . . . . . . . . . . . Slashing . | . . . . . . . . . . . . . Piercing . | . . . . . . . . . . . . . Highest Corruption 4 | . . . . . . . . 4 . . . 4 Average Corruption 2 | . . . . . . . . 2 . . . 3 Corruption Purged . | . . . . . . . . . . . . . Corruption Blocked . | . . . . . . . . . . . . . Effects 5 | . . . . . . . . 5 . . . . Message Errors 2 | . . . . . . . . 2 . . . . Matter Fused 1 | . . . . . . . . 1 . . . . Data Loss (minor) 1 | . . . . . . . . 1 . . . . Misfires 1 | . . . . . . . . 1 . . . . Overload Shots . | . . . . . . . . . . . . . Overflow Damage 155 | . . . 19 . . . 67 15 . 19 . 35 Projectiles 35 | . . . 19 . . . 16 . . . . . Explosions 120 | . . . . . . . 51 15 . 19 . 35 Melee . | . . . . . . . . . . . . . Knockbacks 2 | . . . . . . . 2 . . . . . Impact 2 | . . . . . . . 2 . . . . . Kinetic . | . . . . . . . . . . . . . Secondary . | . . . . . . . . . . . . . Self-Inflicted Damage 561 | . . . 47 . . . 249 50 . 62 . 153 Shots 19 | . . . 2 . . . 8 4 . 3 . 2 Rammed 4 | . . . . . . . 4 . . . . . Targets Rammed 5 | . . . . . . . 5 . . . . . Kicked . | . . . . . . . . . . . . . Crushed 1 | . . . . . . . 1 . . . . . Highest Temperature 430 | . 18 . 286 . . 29 160 167 192 180 304 430 Average Temperature 72 | . 8 . 63 . . 13 49 44 90 86 195 97 Received Heat Transfer 1848 | . 135 . 411 . . . 162 510 36 57 222 315 Siege Activations . | . . . . . . . . . . . . . Martial Activations . | . . . . . . . . . . . . . Shielding Activations . | . . . . . . . . . . . . . Robots Disrupted . | . . . . . . . . . . . . . Combat Hostiles . | . . . . . . . . . . . . . Robots Corrupted . | . . . . . . . . . . . . . Combat Hostiles . | . . . . . . . . . . . . . Parts Fried 2 | . . . 1 . . . . . . . . 1 Impact Corruptions . | . . . . . . . . . . . . . Robots Melted 3 | . . . . . . . . . 1 1 1 . Combat Hostiles 3 | . . . . . . . . . 1 1 1 . Parts Melted 16 | . . . . . . . . 5 2 1 3 5 Heat Transferred 4792 | . 125 . 333 . . . 757 835 400 448 857 1037 Parts Sabotaged . | . . . . . . . . . . . . . Parts Stolen . | . . . . . . . . . . . . . Parts Stripped . | . . . . . . . . . . . . . Power Chain Reactions 4 | . . . . . . . 2 1 . . . 1 Alert | -11 -10 -10 -9 -9 -9 -8 -8 -7 -6 -6 -6 -5 ------- Run | Yrd Mat Min Mat Min Exi Min Mat Fac Fac Low Low Fac Maximum Alert Level 2 | . . . 2 . . . 2 1 . . . . Low Security (%) 82 | 100 100 100 70 100 . 100 29 94 100 . . 100 Level 1 8 | . . . 18 . . . 29 5 . . . . Level 2 8 | . . . 11 . . . 41 . . . . . Level 3 . | . . . . . . . . . . . . . Level 4 . | . . . . . . . . . . . . . Level 5 . | . . . . . . . . . . . . . High Security . | . . . . . . . . . . . . . Max Security . | . . . . . . . . . . . . . Peak Influence 476 | 10 72 107 430 157 . 70 476 213 91 . . 127 Initial 213 | . . . 41 157 . . 17 213 91 . . 19 Average 97 | . 14 29 160 41 . 5 289 71 18 . . 33 Influence Increases 2948 | 10 181 142 813 . . 70 806 316 43 170 70 327 Destroy 0b10 Robot/C 1720 | . 80 100 480 . . 60 460 200 20 140 60 120 Destroy 0b10 Robot/NC 175 | 10 15 . 40 . . . 30 30 10 . . 40 Destroy Leader 454 | . 26 20 158 . . 10 100 60 10 30 10 30 Allied During Kill 7 | . . 7 . . . . . . . . . . Successful Hack 68 | . 22 5 41 . . . . . . . . . Disable Machine 105 | . . . 15 . . . 60 . . . . 30 Destroy Structure 269 | . 23 10 49 . . . 96 26 3 . . 62 Lose Combat Pursuer 150 | . 15 . 30 . . . 60 . . . . 45 Influence Decreases 2911 | 10 181 35 514 406 . 24 382 598 231 130 78 322 Entered New Map 719 | . . . 66 249 . . 29 257 97 . 8 13 Time Decay 1897 | 10 181 35 418 157 . 24 343 281 134 120 50 144 Lost Part 295 | . . . 30 . . . 10 60 . 10 20 165 Squads Dispatched 15 | . . . . . . . 1 8 2 . . 4 Investigation 3 | . . . . . . . . . 2 . . 1 Extermination 3 | . . . . . . . . 2 . . . 1 Reinforcement 8 | . . . . . . . 1 5 . . . 2 Assault . | . . . . . . . . . . . . . Garrison 1 | . . . . . . . . 1 . . . . Intercept . | . . . . . . . . . . . . . Searches Triggered . | . . . . . . . . . . . . . Construction Impeded 1 | . . . . . . . . . . . . 1 Haulers Reinforced . | . . . . . . . . . . . . . Active Scanning Responses . | . . . . . . . . . . . . . Cargo Convoy Interrupts . | . . . . . . . . . . . . . Stealth | -11 -10 -10 -9 -9 -9 -8 -8 -7 -6 -6 -6 -5 --------- Run | Yrd Mat Min Mat Min Exi Min Mat Fac Fac Low Low Fac Distress Signals 10 | . 2 . 2 . . . 5 . . . . 1 Communications Jammed 15 | . . . . . . . . . . . . 15 Distress Signals 15 | . . . . . . . . . . . . 15 Times Spotted 133 | . 9 3 36 . . 3 37 18 3 7 3 14 Peak Tracking Total 10 | . 3 2 10 . . 3 7 7 1 3 3 7 Tactical Retreats 5 | . 1 . 1 . . . 2 . . . . 1 Traps | -11 -10 -10 -9 -9 -9 -8 -8 -7 -6 -6 -6 -5 ------- Run | Yrd Mat Min Mat Min Exi Min Mat Fac Fac Low Low Fac Traps Triggered 5 | . 1 . . . . . . . 1 . . 3 Indirectly . | . . . . . . . . . . . . . Trap Hack Attempts . | . . . . . . . . . . . . . Triggered . | . . . . . . . . . . . . . Disarmed 4 | . . . 4 . . . . . . . . . Reprogrammed . | . . . . . . . . . . . . . Reused . | . . . . . . . . . . . . . Traps Extracted . | . . . . . . . . . . . . . Installed . | . . . . . . . . . . . . . Triggered . | . . . . . . . . . . . . . Machines | -11 -10 -10 -9 -9 -9 -8 -8 -7 -6 -6 -6 -5 ---------- Run | Yrd Mat Min Mat Min Exi Min Mat Fac Fac Low Low Fac Machines Disabled 7 | . . . 1 . . . 4 . . . . 2 Max in Single Turn 1 | . . . 1 . . . 1 . . . . 1 Machines Repaired . | . . . . . . . . . . . . . Machines Dismantled . | . . . . . . . . . . . . . Machines Sabotaged . | . . . . . . . . . . . . . Overloaded Fab Kills . | . . . . . . . . . . . . . Hacking | -11 -10 -10 -9 -9 -9 -8 -8 -7 -6 -6 -6 -5 --------- Run | Yrd Mat Min Mat Min Exi Min Mat Fac Fac Low Low Fac Machines Accessed 25 | . 4 1 9 1 2 . 4 . 2 1 . 1 Terminals 17 | . 3 1 7 . . . 4 . 2 . . . Fabricators . | . . . . . . . . . . . . . Repair Stations 2 | . 1 . 1 . . . . . . . . . Recycling Units 1 | . . . . . . . . . . . . 1 Scanalyzers 1 | . . . 1 . . . . . . . . . Garrison Access . | . . . . . . . . . . . . . Total Hacks 71 | . 10 1 20 1 24 . 9 . 3 1 . 2 Successful 51 | . 7 1 13 1 24 . 1 . 2 1 . 1 Failed 20 | . 3 . 7 . . . 8 . 1 . . 1 Catastrophic 2 | . . . . . . . 1 . 1 . . . Database Lockouts . | . . . . . . . . . . . . . Manual 15 | . . . 9 . 1 . 5 . . . . . Terminals 38 | . 8 1 17 . . . 9 . 3 . . . Fabricators . | . . . . . . . . . . . . . Repair Stations 3 | . 2 . 1 . . . . . . . . . Recycling Units 2 | . . . . . . . . . . . . 2 Scanalyzers 2 | . . . 2 . . . . . . . . . Garrison Access . | . . . . . . . . . . . . . Terminal Hacks 45 | . 5 1 10 1 24 . 1 . 2 1 . . Record 26 | . . . 2 . 23 . . . 1 . . . Prototype ID Bank 1 | . 1 . . . . . . . . . . . Open Door 2 | . . . . 1 . . . . . 1 . . Branch Access Points 2 | . 1 . 1 . . . . . . . . . Emergency Access Points 1 | . . . 1 . . . . . . . . . Terminal Index 1 | . 1 . . . . . . . . . . . Alert Level 4 | . 1 . 1 . . . 1 . 1 . . . Locate Traps 2 | . 1 . 1 . . . . . . . . . Disarm Traps 1 | . . . 1 . . . . . . . . . Hauler Manifests 1 | . . . 1 . . . . . . . . . Zone Layout 3 | . . 1 2 . . . . . . . . . Proto ID Catalog 1 | . . . . . 1 . . . . . . . Fabricator Hacks . | . . . . . . . . . . . . . Repair Station Hacks 3 | . 2 . 1 . . . . . . . . . Scan Component 2 | . 1 . 1 . . . . . . . . . Repair 1 | . 1 . . . . . . . . . . . Recycling Unit Hacks 1 | . . . . . . . . . . . . 1 Retrieve Components 1 | . . . . . . . . . . . . 1 Scanalyzer 2 | . . . 2 . . . . . . . . . Insert Component 1 | . . . 1 . . . . . . . . . Analyze 1 | . . . 1 . . . . . . . . . Garrison Access Hacks . | . . . . . . . . . . . . . Unauthorized Hacks . | . . . . . . . . . . . . . Terminals . | . . . . . . . . . . . . . Fabricators . | . . . . . . . . . . . . . Repair Stations . | . . . . . . . . . . . . . Recycling Units . | . . . . . . . . . . . . . Scanalyzers . | . . . . . . . . . . . . . Garrison Access . | . . . . . . . . . . . . . Data Cores Recovered . | . . . . . . . . . . . . . Used . | . . . . . . . . . . . . . Hacking Detections 12 | . 3 . 4 . . . 3 . 1 . . 1 Full Trace Events 2 | . . . 1 . . . . . 1 . . . Feedback Events . | . . . . . . . . . . . . . Feedback Blocked . | . . . . . . . . . . . . . Robot Schematics Acquired . | . . . . . . . . . . . . . Robots Built . | . . . . . . . . . . . . . Authchips . | . . . . . . . . . . . . . Time . | . . . . . . . . . . . . . Total Robot Build Rating . | . . . . . . . . . . . . . Part Schematics Acquired 1 | . . . 1 . . . . . . . . . Parts Built . | . . . . . . . . . . . . . Authchips . | . . . . . . . . . . . . . Time . | . . . . . . . . . . . . . Total Part Build Rating . | . . . . . . . . . . . . . Parts Repaired 1 | . 1 . . . . . . . . . . . Time 26 | . 26 . . . . . . . . . . . Parts Recycled . | . . . . . . . . . . . . . Recycled Matter . | . . . . . . . . . . . . . Retrieved Matter . | . . . . . . . . . . . . . Retrieved Components 3 | . . . . . . . . . . . . 3 Parts Scanalyzed 1 | . . . 1 . . . . . . . . . Part Schematics Acquired 1 | . . . 1 . . . . . . . . . Parts Damaged . | . . . . . . . . . . . . . Bothacking | -11 -10 -10 -9 -9 -9 -8 -8 -7 -6 -6 -6 -5 ------------ Run | Yrd Mat Min Mat Min Exi Min Mat Fac Fac Low Low Fac Used RIF Installer . | . . . . . . . . . . . . . Robots Hacked . | . . . . . . . . . . . . . Non-combat . | . . . . . . . . . . . . . Combat . | . . . . . . . . . . . . . Robot Hacks Applied . | . . . . . . . . . . . . . Relay Couplers Released . | . . . . . . . . . . . . . Fabnet Peak Effective % . | . . . . . . . . . . . . . Robots Rewired . | . . . . . . . . . . . . . Allies Hacked . | . . . . . . . . . . . . . Hacks Repelled . | . . . . . . . . . . . . . Allies | -11 -10 -10 -9 -9 -9 -8 -8 -7 -6 -6 -6 -5 -------- Run | Yrd Mat Min Mat Min Exi Min Mat Fac Fac Low Low Fac Total Allies 1 | . . 1 . . . . . . . . . . Largest Group 1 | . . 1 . . . . . . . . . . Highest-Rated Group 31 | . . 31 . . . . . . . . . . Highest-Rated Ally 31 | . . 31 . . . . . . . . . . Total Orders . | . . . . . . . . . . . . . Ally Attacks 9 | . . 9 . . . . . . . . . . Total Damage 171 | . . 171 . . . . . . . . . . Kills 3 | . . 3 . . . . . . . . . . Allies Corrupted . | . . . . . . . . . . . . . Allies Melted . | . . . . . . . . . . . . . Intel | -11 -10 -10 -9 -9 -9 -8 -8 -7 -6 -6 -6 -5 ------- Run | Yrd Mat Min Mat Min Exi Min Mat Fac Fac Low Low Fac Active Infowar (turns) 3526 | 19 178 . 1124 631 421 108 771 . . . . 274 Optics 3055 | . . . 1124 631 421 108 771 . . . . . Seismic 197 | 19 178 . . . . . . . . . . . Jamming 274 | . . . . . . . . . . . . 274 Robot Analysis Total . | . . . . . . . . . . . . . Derelict Logs Recovered 5 | . . 1 . 1 . . . . . 2 1 . Drone Launches . | . . . . . . . . . . . . . Drone Recoveries . | . . . . . . . . . . . . . Exploration | -11 -10 -10 -9 -9 -9 -8 -8 -7 -6 -6 -6 -5 ------------- Run | Yrd Mat Min Mat Min Exi Min Mat Fac Fac Low Low Fac Turns Passed 8170 | 116 780 217 1354 631 421 625 1113 889 599 581 110 734 Spaces Moved 4289 | 58 432 118 649 385 260 374 562 443 338 335 31 304 Core 12 | 2 . . . . . . . . . . . 10 Treads 3761 | 52 46 . 643 385 260 374 562 443 338 335 31 292 Legs . | . . . . . . . . . . . . . Wheels 516 | 4 386 118 6 . . . . . . . . 2 Hover . | . . . . . . . . . . . . . Flight . | . . . . . . . . . . . . . Fastest Speed 50 | 50 95 140 140 160 160 160 160 160 160 160 240 80 Average Speed 161 | 152 144 140 160 160 160 160 160 161 160 160 240 197 Slowest Speed 700 | 160 215 140 240 160 160 160 162 162 240 160 240 700 Overloaded Moves . | . . . . . . . . . . . . . Propulsion Burnouts . | . . . . . . . . . . . . . Robots Hopped . | . . . . . . . . . . . . . Potential Cave-ins . | . . . . . . . . . . . . . Cave-ins Triggered . | . . . . . . . . . . . . . Exploration Rate (%) 44 | 4 84 32 70 85 68 74 67 15 13 45 8 11 Regions Visited 12 Branch Regions 6 Pre-discovered Areas 3 | . . 1 . 1 1 . . . . . . . Known Exits Taken 3 | . 1 . 1 . . . . . . 1 . . Unknown Exits Taken 9 | 1 . 1 . 1 1 1 1 1 1 . 1 . Scrap Searched 5 | . . 1 . . . 2 . . . 2 . . Spaces Dug 12 | . . 10 . . . . 2 . . . . . Terrain Destroyed 384 | . 29 10 45 . . . 159 28 3 73 . 37 Melee 2 | . . . . . . . 2 . . . . . Projectile 7 | . . . . . . . 2 . 3 . . 2 AOE 375 | . 29 10 45 . . . 155 28 . 73 . 35 Terrain Rammed . | . . . . . . . . . . . . . Walls Destroyed . | . . . . . . . . . . . . . Machines Disabled . | . . . . . . . . . . . . . Actions | -11 -10 -10 -9 -9 -9 -8 -8 -7 -6 -6 -6 -5 --------- Run | Yrd Mat Min Mat Min Exi Min Mat Fac Fac Low Low Fac Total 5158 | 80 536 163 862 400 265 390 707 564 383 367 47 394 Wait 281 | 3 49 36 51 12 . 3 25 58 21 2 . 21 Move 4277 | 57 431 117 648 384 259 373 561 442 337 334 30 304 Hop . | . . . . . . . . . . . . . Pick Up 86 | 8 9 1 29 1 2 2 14 5 6 5 . 4 Fast Attach 51 | 7 . . 12 . . . 5 3 3 . . 21 Attach 54 | . 3 . 7 . . 1 6 16 3 7 3 8 Detach 26 | 1 . 1 4 . . . 5 5 2 3 2 3 Swap 94 | . 14 2 22 2 2 2 27 9 3 5 3 3 Drop 79 | 1 2 . 34 1 2 2 18 1 3 4 . 11 Fire 203 | 3 28 6 55 . . 7 39 25 5 7 9 19 Melee 2 | . . . . . . . 2 . . . . . Ram . | . . . . . . . . . . . . . Kick . | . . . . . . . . . . . . . Crush 5 | . . . . . . . 5 . . . . . Escape Stasis . | . . . . . . . . . . . . . Rewire . | . . . . . . . . . . . . . Trap . | . . . . . . . . . . . . . Miscellaneous . | . . . . . . . . . . . . . Route ------- -11/Scrapyard -10/Materials (discovered 4 exits: *Mat x2 / *Min x2) -10/Mines -9/Materials (discovered 3 exits: *Mat x2 / *Min) -9/Mines (discovered 3 exits: *Mat / *Exi / [*Zio]) -9/Exiles (discovered 2 exits: [*Min x2]) -8/Mines -8/Materials (discovered 2 exits: *Fac x2) -7/Factory -6/Factory -6/Lower Caves -6/Lower Caves -5/Factory (discovered 3 exits: Fac x2 / Upp) History --------- Turn | Location | Event 13 | -11/Scrapyard | Discovered new exit (range 16) 117 | -11/Scrapyard | Entered Materials 119 | -10/Materials | Discovered new exit (range 14) 250 | -10/Materials | Discovered new exit (range 10) 318 | -10/Materials | Build established: Mutant 590 | -10/Materials | Repaired Assault Rifle 630 | -10/Materials | Discovered new exit (range 13) 801 | -10/Materials | Identified exit to Mines 897 | -10/Materials | Entered Mines 900 | -10/Mines | Received a Mining Laser from a helpful Derelict 960 | -10/Mines | Found a hidden stash of uninstalled traps 1011 | -10/Mines | Discovered new exit (range 15) 1114 | -10/Mines | Entered Materials 1114 | -9/Materials | Evolved 2 slots: Propulsion x1, Utility x1 1565 | -9/Materials | Discovered new exit (range 5) 1974 | -9/Materials | Discovered new exit (range 11) 2001 | -9/Materials | Identified exit to Mines 2105 | -9/Materials | Destroyed 8 combat bots 2468 | -9/Materials | Entered Mines 2480 | -9/Mines | Met a Derelict bent on vengeance 2507 | -9/Mines | Learned location of Zion (-7) 2779 | -9/Mines | Received a Rocket Launcher from a helpful Derelict 2902 | -9/Mines | Found the Drone Emporium 2911 | -9/Mines | Found Prototype Device 2912 | -9/Mines | Identified Thief Drone Bay 3043 | -9/Mines | Discovered new exit (range 5) 3080 | -9/Mines | A Derelict revealed a hidden shortcut to a safe place 3081 | -9/Mines | Assembled infested the area 3093 | -9/Mines | Deemed a non-threat by the Exiles lab entrance 3093 | -9/Mines | Discovered new exit (range 5) 3099 | -9/Mines | Entered Exiles 3122 | -9/Exiles | Discovered new exit (range 16) 3138 | -9/Exiles | Met 8R-AWN 3168 | -9/Exiles | Met EX-HEX 3210 | -9/Exiles | Met EX-BIN 3231 | -9/Exiles | Aligned with FarCom system 3232 | -9/Exiles | Given EX-Vault access code 3271 | -9/Exiles | Opened EX-Vault 3284 | -9/Exiles | Found Superbattery 3318 | -9/Exiles | Warned to stay clear of 0b10 Research branches 3362 | -9/Exiles | Met EX-DEC 3501 | -9/Exiles | Discovered new exit (range 14) 3520 | -9/Exiles | Left Exiles lab with Superbattery 3520 | -9/Exiles | Entered Mines 4133 | -8/Mines | Discovered new exit (range 9) 4145 | -8/Mines | Entered Materials 4145 | -8/Materials | Evolved 2 slots: Propulsion x2 4805 | -8/Materials | Discovered new exit (range 11) 4993 | -8/Materials | Found Prototype Launcher 4993 | -8/Materials | Identified Rocket Array 4997 | -8/Materials | Found Rocket Array 5214 | -8/Materials | Discovered new exit (range 16) 5258 | -8/Materials | Entered Factory 5258 | -7/Factory | Evolved 2 slots: Utility x2 6023 | -7/Factory | Discovered new exit (range 11) 6056 | -7/Factory | Garrison activated, responded to threat 6084 | -7/Factory | Lost 3 parts (1p1u1w) 6113 | -7/Factory | Destroyed 8 combat bots 6139 | -7/Factory | Lost 3 parts (1n1u1w) 6147 | -7/Factory | Entered another Factory area 6147 | -6/Factory | Evolved 2 slots: Propulsion x1, Weapon x1 6454 | -6/Factory | Build established: Skirmisher 6687 | -6/Factory | Discovered new exit (range 16) 6746 | -6/Factory | Entered Lower Caves 6917 | -6/Lower Caves | Encountered a Warlord checkpoint 6930 | -6/Lower Caves | Learned 8 Factory zone layouts 7038 | -6/Lower Caves | Build established: Tank 7128 | -6/Lower Caves | Spotted B-75 Beast 7158 | -6/Lower Caves | Destroyed B-75 Beast 7182 | -6/Lower Caves | Identified exit to Lower Caves 7327 | -6/Lower Caves | Entered another Lower Caves area 7381 | -6/Lower Caves | Learned 4 Factory zone layouts 7408 | -6/Lower Caves | Discovered new exit (range 13) 7437 | -6/Lower Caves | Entered Factory 7437 | -5/Factory | Evolved 2 slots: Utility x2 7438 | -5/Factory | Identified exit to Factory 7438 | -5/Factory | Identified exit to Upper Caves 8058 | -5/Factory | Build established: Skirmisher 8070 | -5/Factory | Spotted B-75 Beast 8144 | -5/Factory | Core integrity fell below 50% 8161 | -5/Factory | Core integrity fell below 20% 8171 | -5/Factory | Destroyed by B-75 Beast with Heavy Plasma Cannon Last Messages --------------- 08161_ Acquired Wheel. 08161_ R-10 Processor collects Lgt. Ion Engine. 08162_ U-05 Engineer lays Concrete. 08163_ K-01 Serf collects debris. 08164_ U-05 Engineer lays Concrete. 08164_ Acquired Neutrino Core. 08164_ R-10 Processor collects Terrain Scanner. 08165_ U-05 Engineer lays Concrete. 08166_ Neutrino Core destroyed. 08166_ Wheel destroyed. 08166_ Extracted 1 energy. 08166_ K-01 Serf collects debris. 08166_ U-05 Engineer lays Concrete. 08167_ Acquired Superbattery. 08167_ U-05 Engineer lays Concrete. 08169_ K-01 Serf collects debris. 08169_ U-05 Engineer lays Concrete. 08170_ Acquired Imp. Ion Engine. 08170_ U-05 Engineer lays Concrete. 08170_ R-10 Processor collects Great Axe. Map ----- +----------------------------------------------------+ | ?# # """ #???# # """"""" #???? | | ?# # """ #???# " "" # """"""" #???? | | ?# # #???# """" # #???? | | ?# # """ #???# """" + """"""" #???? | | ?# # """ #???# """" # """"""" #???? | | ?# # """ #???# """" # """"""" #???? | | ?# # #???# """" # """"""" #???? | | ?# ########+#???# /! """" # #???? | | ?# #T ##### ##### " " ###############???? | | ?# "Y" #? ?????????? | | ?# ##### """ # """ ?????????? | | ?# ????# # """ ??????? | | ###+#????# + "S "" ?????????? | | """??????# ########## # """ "" ?????????? | | """??????# #????????# # "" ""??????????? | | """??????# +????????# #? "???????????? | | ??????######????????# #? ""??????????? | | ??????????????????### #?? ??????????? | | ???????????########;# #?? ?????????? | | ???????????# #??? ????????? | | ###???????????# #??? ???????? | | ??#???????????# """"" #????####+##??????? | | ??#???????????# ""% "] %%w #?????????????????? | | ??#???????????# "!% #?????????????????? | | ###???????????# %=k ! !] #?????????????????? | | +???????????# ! % @ #?????????????????? | | ##???????????# =!s%Rs #?????????????????? | | ##???????????# |%*% %% #?????????????????? | | ##???????????# =% ######????????????? | | ##???????????# s % ??????????? | | ##??????????# ??????????? | | ?????????????# """ ??????????? | | ?????????????# "Y" """ ???????????? | | ???????????? k " " """ ???????????? | | ??????????? """?? w???????????? | | ?????????% ???????????? | | ?????????# """ """ ???????????? | | ?????????? u """ ""????????????????? | | ??????? ^ BB """ "?????????????????? | | ?????? BB ??????????????????? | | ??????? "?????????????????? | | ??????? % ""????????????????? | | ??????? ""????????????????? | | ???????? ????????????????? | | ????????##+####### # """ """???????????????? | | ?????????????????### ## """ "?????????????????? | | ???????????????????####? ""??"?????????????????? | | ???????????????????????? ?????????????????????? | | ????????????????????????? "?????????????????????? | | ????????????????????????? ???????????????????????? | +----------------------------------------------------+ Best States ------------- Heat Dissipation 82 Energy Generation 16 Energy Capacity 1790 Matter Stores 527 Matter Capacity 550 Sight Range 20 Terrain Scan Density 10 Jamming Range 14 Armor Coverage 600 Resistance: KI 30 Evasion (%) 41 Targeting Accuracy 8 Recoil Reduction 6 Item Schematics ----------------- Mining Laser | -9/Materials | Scanalyzed Robot Schematics ------------------ None Fabricated ------------ Nothing Repaired ---------- Assault Rifle | 72% | -10/Materials Alien Tech Used ----------------- None Achievements -------------- Maybe Next Time I'll Detach My Launcher Total Silence Challenges ------------ None Game ------ Seed ProtonFissionMace Manual? 0 Play Time 01:29:20 Cumulative 11.9 hours Start 2025.10.06 @ 12:06:33 End 2025.10.06 @ 13:51:14 Sessions 1 Manual Loads 0 Difficulty Rogue Special Mode None Game No. 27 Rogue 27 Adventurer 0 Explorer 0 Win Type - Total 0 Types 0/0/0/0/0/0/0/0/0/0 Lore% 16 Gallery% 22 Achievement% 19 Wizard Run 0 Options --------- Layout 1 ASCII 0 Keyboard 0 Movement Numpad Keybinds 0 Fullscreen 2 Font 24/Smallcaps Map View 50x35 Zoom Use 0% Tactical HUD 1 Map Filters NONE Filters NONE Steam 1 RUN: 33900457-6258-4395-8124-0b4ce49c2b15